bitfinex-derivatives/quotes_ETHF0:USTF0_20250411
["timestamp","ask_amount","ask_price","bid_price","bid_amount"]
[1744393937504,5.02059148,1582.4,1582.3,1.26458]
[1744393938716,6.28509148,1582.4,1582.3,1.26458]
[1744393939017,2.9754,1582.4,1582.3,1.26458]
[1744393939317,4.2399,1582.4,1582.3,1.26458]
[1744393939615,1.26477,1582.1,1582.0,1.26479]
[1744393939804,1.26485,1582.0,1581.8,0.00947119]
[1744393940010,2.9775,1582.0,1581.9,1.26487]
[1744393940405,1.2649,1581.9,1581.8,1.27439119]
[1744393940605,1.2649,1581.9,1581.8,0.00947119]
[1744393940816,3.7934,1581.9,1581.8,0.00947119]
[1744393941011,3.7934,1581.9,1581.8,1.27445119]
[1744393941315,2.5933,1582.3,1582.2,1.26466]
[1744393941515,6.38901,1582.3,1582.2,1.26466]
[1744393941814,6.38898,1582.3,1582.2,1.26466]
[1744393942317,1.26483,1582.1,1582.0,1.2648]
[1744393942506,1.2649,1581.9,1581.8,0.00947119]
[1744393943115,1.2651,1581.7,1581.6,1.26512]
[1744393943315,12.63844,1581.8,1581.7,1.26506]
[1744393943510,12.63838,1581.8,1581.7,1.26506]
[1744393943822,5.4544,1581.8,1581.7,1.26506]
[1744393944113,6.71938,1581.8,1581.7,4.47286]
[1744393944313,6.71938,1581.8,1581.7,1.26506]
[1744393944508,6.71938,1581.8,1581.7,2.922]
[1744393944709,6.71938,1581.8,1581.7,4.18706]
[1744393944912,6.71938,1581.8,1581.7,2.922]
[1744393945519,6.71938,1581.8,1581.7,4.18706]
[1744393945721,0.00947119,1581.9,1581.7,2.922]
[1744393945918,1.27439119,1581.9,1581.8,1.26498]
[1744393946414,1.27439119,1581.9,1581.7,4.187]
[1744393946615,4.14959119,1581.9,1581.7,4.187]
[1744393946820,2.88467119,1581.9,1581.8,1.26498]
[1744393947020,0.00947119,1581.9,1581.8,4.47278]
[1744393948018,0.00947119,1581.9,1581.8,9.47278]
[1744393948220,1.27440119,1581.9,1581.7,2.922]
[1744393948416,0.00947119,1581.9,1581.8,1.26498]
[1744393948616,1.26498,1581.8,1581.7,2.922]
[1744393948816,1.26506,1581.7,1581.6,1.27457119]
[1744393949223,5.4193,1581.8,1581.7,1.26506]
[1744393949424,0.00947119,1581.9,1581.8,1.26498]
[1744393949622,0.00947119,1581.9,1581.7,4.14741]
[1744393949824,0.00947119,1581.9,1581.8,1.26498]
[1744393950725,0.00947119,1581.9,1581.8,9.47278]
[1744393951019,1.26498,1581.8,1581.7,2.8824]
[1744393951224,1.26506,1581.7,1581.6,0.00947119]
[1744393951422,4.19466,1581.7,1581.6,0.00947119]
[1744393951722,4.19466,1581.7,1581.6,1.27461119]
[1744393951924,2.9296,1581.7,1581.6,1.27461119]
[1744393952226,2.5411,1581.8,1581.7,1.26506]
[1744393952426,2.5411,1581.8,1581.7,4.04086]
[1744393953519,0.00947119,1581.9,1581.8,1.26498]
[1744393953920,0.00947119,1581.9,1581.8,6.26498]
[1744393954425,1.19e-06,1581.9,1581.8,6.26498]
[1744393954624,1.19e-06,1581.9,1581.8,8.89828]
[1744393954927,1.19e-06,1581.9,1581.8,9.35696072]
[1744393955132,1.19e-06,1581.9,1581.8,9.98976072]
[1744393955727,1.19e-06,1581.9,1581.8,9.35696072]
[1744393955932,1.19e-06,1581.9,1581.8,12.41126072]
[1744393956224,4.93688171,1582.7,1582.6,1.26434]
[1744393956431,4.93688171,1582.7,1582.5,1.26442]
[1744393956627,2.8811,1582.6,1582.4,1.26444]
[1744393956930,6.63541,1582.6,1582.4,1.26445]
[1744393957227,5.371,1582.6,1582.3,3.06377119]
[1744393957424,2.4899,1582.6,1582.4,3.0543]
[1744393957624,3.75428,1582.6,1582.5,1.26442]
[1744393957825,6.63538,1582.6,1582.5,1.26442]
[1744393958428,6.63539,1582.6,1582.3,0.00947119]
[1744393958628,5.371,1582.6,1582.5,1.26442]
[1744393958822,6.63534,1582.6,1582.5,1.26442]
[1744393959027,5.371,1582.6,1582.3,0.00947119]
[1744393959331,5.371,1582.6,1582.3,1.27401119]
[1744393959332,1.2645,1582.4,1582.3,1.27401119]
[1744393959532,1.2645,1582.4,1582.3,0.00947119]
[1744393959728,9.2571,1582.4,1582.3,0.00947119]
[1744393960126,4.2571,1582.4,1582.3,0.00947119]
[1744393960433,12.4649,1582.4,1582.3,0.00947119]
[1744393961224,1.26488,1582.0,1581.8,3.2078]
[1744393961431,1.2648,1582.1,1582.0,1.26481]
[1744393961632,3.7128,1582.2,1582.1,1.26474]
[1744393961829,6.7054,1582.2,1582.1,1.26474]
[1744393962127,5.4407,1582.2,1582.1,1.26474]
[1744393962326,6.70544,1582.2,1582.1,1.26474]
[1744393962531,1.26474,1582.1,1582.0,3.07627119]
[1744393962831,4.05594,1582.1,1582.0,4.34109119]
[1744393963433,4.05594,1582.1,1582.0,7.54889119]
[1744393963629,4.05594,1582.1,1582.0,4.34109119]
[1744393963833,4.05594,1582.1,1582.0,0.00947119]
[1744393965324,1.26474,1582.1,1582.0,1.27429119]
[1744393965545,9.56283,1582.2,1582.1,1.26474]
[1744393965833,9.56283,1582.2,1582.1,4.04154]
[1744393966034,9.56283,1582.2,1582.1,2.7768]
[1744393966230,9.56283,1582.2,1582.1,4.04154]
[1744393966430,9.56283,1582.2,1582.1,2.7768]
[1744393966625,9.56283,1582.2,1582.1,4.04154]
[1744393967226,1.26462,1582.3,1582.2,1.26466]
[1744393967431,6.20144171,1582.4,1582.3,1.26458]
[1744393967633,8.99924171,1582.4,1582.3,1.26458]
[1744393968429,6.20144171,1582.4,1582.3,1.26458]
[1744393969433,4.93688171,1582.4,1582.3,1.26458]
[1744393969628,4.93688171,1582.4,1582.3,4.47238]
[1744393969843,4.93688171,1582.4,1582.3,9.47238]
[1744393970234,3.66873171,1582.4,1582.3,12.43618]
[1744393970437,12.27331785,1582.7,1582.6,1.26434]
[1744393970824,4.94847595,1582.7,1582.6,6.26434]
[1744393971129,4.94847595,1582.7,1582.6,17.06324]
[1744393971525,3.30560595,1582.7,1582.6,17.06324]
[1744393971722,1.21578595,1582.7,1582.6,17.52133609]
[1744393971935,5.95e-06,1582.7,1582.6,17.52133609]
[1744393972431,4.81327547,1582.9,1582.8,1.26419]
[1744393972634,4.81327547,1582.9,1582.8,4.47199]
[1744393972827,4.81327547,1582.9,1582.8,9.47199]
[1744393973833,4.81327547,1582.9,1582.8,12.34559]
[1744393974234,4.81327547,1582.9,1582.8,7.34559]
[1744393975126,6.07738547,1582.9,1582.8,7.34559]
[1744393975424,4.25661,1582.9,1582.8,4.13779]
[1744393976034,2.9925,1582.9,1582.8,4.13779]
[1744393976233,4.25661,1582.9,1582.8,4.13779]
[1744393977634,4.25661,1582.9,1582.8,1.26419]
[1744393977832,2.9925,1582.9,1582.8,1.26419]
[1744393978033,4.25661,1582.9,1582.8,1.26419]
[1744393978539,2.9925,1582.9,1582.8,1.26419]
[1744393979036,4.25661,1582.9,1582.8,1.26419]
[1744393979238,6.15279,1582.9,1582.5,3.2078]
[1744393979439,1.2643,1582.7,1582.6,4.22709]
[1744393980243,1.2643,1582.7,1582.6,2.9628]
[1744393980437,1.26434,1582.6,1582.5,1.26437]
[1744393980741,2.4348,1582.7,1582.6,1.26434]
[1744393981333,5.434,1582.7,1582.5,4.24049]
[1744393981534,3.16146,1582.4,1582.1,1.26474]
[1744393981738,8.56237,1582.6,1582.1,6.1839]
[1744393981932,4.2637,1582.5,1582.4,1.2645]
[1744393982133,1.2645,1582.4,1582.3,1.26452]
[1744393982347,2.9992,1582.4,1582.3,1.26452]
[1744393982539,1.26458,1582.3,1582.2,4.24075]
[1744393982751,2.9992,1582.4,1582.3,1.26458]
[1744393982752,4.26373,1582.4,1582.3,1.26458]
[1744393982939,2.9992,1582.4,1582.3,4.24068]
[1744393983141,3.66667,1582.6,1582.5,1.26442]
[1744393983441,3.69906,1582.7,1582.6,1.26434]
[1744393983737,3.6991,1582.7,1582.6,1.26434]
[1744393983942,1.26434,1582.6,1582.5,1.26436]
[1744393984145,3.69911,1582.7,1582.6,1.26434]
[1744393984445,2.4023,1582.9,1582.8,1.26419]
[1744393984651,1.2643,1582.7,1582.6,1.26432]
[1744393986344,4.16392,1582.8,1582.7,1.26426]
[1744393987645,1.26426,1582.7,1582.6,2.9801]
[1744393987846,3.16087,1582.6,1582.2,4.47243]
[1744393988146,6.51162,1582.5,1582.4,1.2645]
[1744393988538,6.51162,1582.5,1582.3,2.9801]
[1744393988539,12.21629,1582.8,1582.3,2.9801]
[1744393988738,1.2645,1582.4,1582.3,2.9801]
[1744393989054,5.58536,1582.6,1582.2,3.16167]
[1744393989239,1.26455,1582.4,1582.3,1.2645]
[1744393989439,2.8228,1582.5,1582.4,1.2645]
[1744393989440,4.08728,1582.5,1582.4,1.2645]
[1744393989741,1.2645,1582.4,1582.3,4.23012]
[1744393990151,1.2645,1582.4,1582.3,2.9656]
[1744393990445,1.2645,1582.4,1582.3,4.23018]
[1744393991341,1.2645,1582.4,1582.3,2.9656]
[1744393991543,1.26473,1582.2,1582.1,1.26468]
[1744393991745,1.26473,1582.2,1582.1,4.23034]
[1744393991951,1.26473,1582.2,1582.1,2.9656]
[1744393992135,1.26474,1582.1,1582.0,0.00947119]
[1744393992338,3.70104,1582.1,1582.0,0.00947119]
[1744393992539,3.70104,1582.1,1582.0,1.27429119]
[1744393993051,3.70104,1582.1,1582.0,0.00947119]
[1744393993847,6.54784,1582.1,1582.0,0.00947119]
[1744393994052,6.54784,1582.1,1582.0,1.27429119]
[1744393994252,6.54784,1582.1,1582.0,4.21339119]
[1744393994445,6.54784,1582.1,1582.0,0.00947119]
[1744393995547,1.27417119,1582.2,1582.1,1.26474]
[1744393995854,1.27413119,1582.2,1582.1,4.47254]
[1744393996149,0.00947119,1582.2,1582.1,4.47254]
[1744393996350,1.27413119,1582.2,1582.1,1.26474]
[1744393997448,1.27418119,1582.2,1582.1,1.26474]
[1744393997843,0.00947119,1582.2,1582.1,4.47254]
[1744393998042,0.00947119,1582.2,1582.1,9.47254]
[1744393998454,0.00947119,1582.2,1582.1,12.43904]
[1744393998953,0.00947119,1582.2,1582.1,18.17704]
[1744394000550,0.00947119,1582.2,1582.1,13.17704]
[1744394001060,0.00947119,1582.2,1582.1,18.17704]
[1744394002160,0.00947119,1582.2,1582.1,4.47254]
[1744394002362,1.27413119,1582.2,1582.1,4.18714]
[1744394002960,1.26474,1582.1,1582.0,1.27423119]
[1744394003154,4.13754,1582.1,1582.0,4.19663119]
[1744394003360,4.13754,1582.1,1582.0,2.93187119]
[1744394003561,4.13754,1582.1,1582.0,0.00947119]
[1744394005354,4.13754,1582.1,1582.0,1.27429119]
[1744394005556,4.13754,1582.1,1582.0,0.00947119]
[1744394007469,7.34534,1582.1,1582.0,0.00947119]
[1744394007670,12.34534,1582.1,1582.0,0.00947119]
[1744394008074,11.0806,1582.1,1581.5,4.47297]
[1744394008371,1.26514,1581.6,1581.5,1.26517]
[1744394008565,1.26522,1581.5,1581.4,3.0112]
[1744394008772,4.10622,1581.5,1581.4,4.2765]
[1744394009270,4.10622,1581.5,1581.4,3.0112]
[1744394009881,1.2653,1581.4,1581.3,0.00947119]
[1744394010070,4.1063,1581.4,1581.3,0.00947119]
[1744394012276,4.1063,1581.4,1581.3,2.99377119]
[1744394013361,2.841,1581.4,1581.3,7.99377119]
[1744394013676,1.26523,1581.5,1581.4,1.26523]
[1744394013868,1.26523,1581.5,1581.4,4.09333]
[1744394014660,1.2652,1581.6,1581.5,1.26522]
[1744394014865,1.2652,1581.6,1581.5,4.09332]
[1744394015065,1.2652,1581.6,1581.5,2.8281]
[1744394016176,1.2652,1581.6,1581.5,4.09332]
[1744394016675,17.14416393,1581.7,1581.6,1.26514]
[1744394016865,17.14416393,1581.7,1581.6,2.7424]
[1744394017065,14.21956393,1581.7,1581.6,4.00754]
[1744394017261,11.87936393,1581.7,1581.6,4.00754]
[1744394017678,11.87936393,1581.7,1581.6,2.7424]
[1744394018176,1.2653,1581.4,1581.3,4.48261119]
[1744394018378,1.26529,1581.5,1581.4,1.26528]
[1744394018576,1.2653,1581.4,1581.3,4.48265119]
[1744394019270,1.2653,1581.4,1581.3,3.21727119]
[1744394019468,6.44719,1581.5,1581.4,1.2653]
[1744394019668,6.44719,1581.5,1581.4,4.2543]
[1744394020976,6.44719,1581.5,1581.4,2.989]
[1744394021475,6.44719,1581.5,1581.4,4.2543]
[1744394021668,6.44719,1581.5,1581.4,2.989]
[1744394021865,6.44719,1581.5,1581.4,4.2543]
[1744394022074,1.26529,1581.5,1581.4,4.2543]
[1744394023575,1.2653,1581.4,1581.3,0.00947119]
[1744394024279,1.2653,1581.4,1581.3,1.27485119]
[1744394024678,1.2653,1581.4,1581.3,4.19095119]
[1744394025382,1.2653,1581.4,1581.3,2.92557119]
[1744394025878,1.2653,1581.4,1581.3,4.19095119]
[1744394026377,1.2653,1581.4,1581.3,2.92557119]
[1744394026579,9.1948,1581.4,1581.3,0.00947119]
[1744394026880,9.1948,1581.4,1581.0,3.2078]
[1744394026881,1.26562,1581.0,1580.9,1.26567]
[1744394027071,1.26562,1581.0,1580.9,4.21547]
[1744394028278,1.2657,1580.9,1580.8,1.27519119]
[1744394028580,1.2657,1580.9,1580.8,4.22499119]
[1744394029083,1.27505119,1581.1,1580.8,11.16707119]
[1744394029391,8.67156393,1581.7,1581.1,3.16387]
[1744394029580,1.26529,1581.5,1581.4,1.26528]
[1744394029886,1.26521,1581.6,1581.5,1.26521]
[1744394030084,8.67154393,1581.7,1581.6,1.26514]
[1744394030286,1.26514,1581.6,1581.5,4.47296]
[1744394030481,1.26522,1581.5,1581.4,1.26525]
[1744394030672,7.40643393,1581.7,1581.3,6.37126]
[1744394030877,7.40643393,1581.7,1581.3,3.2078]
[1744394031184,1.26524,1581.5,1581.4,1.26523]
[1744394032582,6.12427,1581.6,1581.2,4.8122]
[1744394032885,1.26532,1581.4,1581.3,1.26531]
[1744394033180,1.26538,1581.3,1581.2,6.0776]
[1744394033380,1.26536,1581.4,1581.3,1.26537]
[1744394033979,1.26538,1581.3,1581.2,6.0776]
[1744394034175,1.26537,1581.4,1581.3,1.26538]
[1744394036383,1.26538,1581.3,1581.2,6.0776]
[1744394036894,1.26546,1581.2,1581.1,3.2078]
[1744394037179,3.79946,1581.4,1581.1,3.2078]
[1744394037385,1.26536,1581.4,1581.3,1.26538]
[1744394037585,1.26531,1581.4,1581.3,1.26532]
[1744394037788,1.2654,1581.3,1581.2,1.26541]
[1744394038482,2.4131,1581.5,1581.1,3.2078]
[1744394038687,1.26532,1581.4,1581.3,1.26533]
[1744394038986,1.26531,1581.4,1581.3,1.26532]
[1744394039285,5.3484,1581.5,1581.1,6.37163]
[1744394039487,4.20058,1581.5,1581.4,1.2653]
[1744394039784,2.9353,1581.5,1581.1,6.37163]
[1744394040082,1.26533,1581.4,1581.3,1.26534]
[1744394040288,4.20059,1581.5,1581.4,1.2653]
[1744394040586,2.9353,1581.5,1581.1,9.53546]
[1744394040788,1.26533,1581.4,1581.3,1.26533]
[1744394041190,6.09839,1581.5,1580.9,8.89321]
[1744394041382,1.26532,1581.4,1581.3,1.26531]
[1744394041684,0.00947119,1581.8,1581.3,3.2078]
[1744394041884,7.41590512,1581.8,1581.7,4.47286]
[1744394042083,7.41590512,1581.8,1581.7,15.67055641]
[1744394042386,0.33322834,1581.8,1581.7,16.18037161]
[1744394042686,0.33322834,1581.8,1581.7,10.67055641]
[1744394043279,0.33322834,1581.8,1581.7,15.67055641]
[1744394043487,8.28465057,1581.9,1581.8,1.26498]
[1744394043688,8.28465057,1581.9,1581.8,4.15577641]
[1744394043884,6.79776057,1581.9,1581.8,9.15577641]
[1744394044187,10.93124666,1582.0,1581.9,1.2649]
[1744394044384,7.79393666,1582.0,1581.9,4.93239641]
[1744394044692,14.71173756,1582.5,1582.4,1.2645]
[1744394044886,14.71173756,1582.5,1582.4,4.4723]
[1744394045283,14.71173756,1582.5,1582.4,1.2645]
[1744394045680,0.00947119,1582.6,1582.5,1.26442]
[1744394046986,1.19e-06,1582.6,1582.5,12.45830287]
[1744394047279,12.35095483,1583.0,1582.9,1.26411]
[1744394047479,12.35095483,1583.0,1582.9,4.47191]
[1744394047892,12.35095483,1583.0,1582.9,7.41751]
[1744394048394,12.35095483,1583.0,1582.9,4.47191]
[1744394048793,15.15705483,1583.0,1582.9,4.47191]
[1744394049090,12.35095483,1583.0,1582.9,4.47191]
[1744394049291,12.35095483,1583.0,1582.9,7.41751]
[1744394051492,12.35095483,1583.0,1582.9,3.2078]
[1744394051794,12.35095483,1583.0,1582.9,4.47191]
[1744394052291,2.7443,1583.1,1583.0,1.26403]
[1744394053498,2.7443,1583.1,1583.0,4.04373]
[1744394053696,2.4703,1583.2,1583.0,4.04373]
[1744394053697,11.3014,1583.4,1583.0,2.7797]
[1744394053997,11.3014,1583.4,1583.2,1.28053781]
[1744394053998,2.7358,1583.3,1583.2,1.28053781]
[1744394054501,2.7358,1583.3,1583.2,4.48833781]
[1744394054791,3.2078,1583.8,1583.3,3.15947]
[1744394055096,2.7358,1583.7,1583.5,0.01674781]
[1744394055289,2.7358,1583.7,1583.5,2.79644781]
[1744394055593,2.7358,1583.7,1583.6,0.01674781]
[1744394055798,3.99927,1583.7,1583.6,0.01674781]
[1744394056099,8.99927,1583.7,1583.6,0.01674781]
[1744394056597,2.7358,1583.7,1583.6,3.22454781]
[1744394056788,8.0685,1584.0,1583.9,1.26331]
[1744394056985,1.26302,1584.3,1584.0,3.15808]
[1744394057192,2.7862,1584.3,1584.2,1.26307]
[1744394057387,2.7862,1584.3,1584.1,3.22454781]
[1744394057388,1.26307,1584.2,1584.1,3.22454781]
[1744394057593,1.26307,1584.2,1584.1,0.01674781]
[1744394057799,5.2578,1584.3,1584.1,1.27983781]
[1744394057997,1.26307,1584.2,1584.1,0.01674781]
[1744394058201,6.35227,1584.2,1584.1,0.01674781]
[1744394058403,11.35227,1584.2,1584.1,0.01674781]
[1744394058892,17.07827,1584.2,1584.1,0.01674781]
[1744394059492,12.07827,1584.2,1584.1,1.27989781]
[1744394060088,5.0892,1584.2,1584.1,1.27989781]
[1744394060699,6.35227,1584.2,1584.1,1.27989781]
[1744394061104,6.35227,1584.2,1584.1,0.01674781]
[1744394061599,6.35227,1584.2,1584.1,1.27989781]
[1744394062795,6.35227,1584.2,1584.1,0.01674781]
[1744394063295,6.35227,1584.2,1584.1,1.27989781]
[1744394063491,5.0892,1584.2,1584.1,1.27989781]
[1744394063798,6.35227,1584.2,1584.1,1.27989781]
[1744394064204,5.0892,1584.2,1584.1,1.27989781]
[1744394064401,6.35227,1584.2,1584.1,1.27989781]
[1744394064904,5.0892,1584.2,1584.1,4.48769781]
[1744394065102,2.4716,1584.3,1584.2,1.26307]
[1744394065302,2.4716,1584.3,1584.2,4.09967]
[1744394065506,2.4716,1584.3,1584.2,4.11641781]
[1744394065701,2.8759,1584.4,1584.3,1.26299]
[1744394065908,2.8759,1584.4,1584.3,1.27973781]
[1744394066201,2.8759,1584.4,1584.3,4.48753781]
[1744394066402,5.3446,1584.6,1584.5,1.26283]
[1744394066607,5.3446,1584.6,1584.5,1.27957781]
[1744394067004,3.2078,1585.2,1584.9,1.26248]
[1744394067201,6.34730219,1585.0,1584.5,4.47056]
[1744394067402,8.87931,1584.9,1584.5,4.47059]
[1744394067605,8.87931,1584.9,1584.5,1.26279]
[1744394067804,2.3634,1584.8,1584.4,0.00947119]
[1744394068114,1.26281,1584.6,1584.4,0.00947119]
[1744394068408,4.07453,1584.5,1584.4,0.00947119]
[1744394068911,9.07453,1584.5,1584.4,0.00947119]
[1744394069103,4.07453,1584.5,1584.4,0.00947119]
[1744394069305,9.07453,1584.5,1584.4,0.00947119]
[1744394069515,3.2078,1584.6,1584.5,1.26283]
[1744394069714,22.06129751,1586.1,1584.5,1.26283]
[1744394069715,3.2078,1585.1,1584.5,5.0]
[1744394070025,2.8117,1585.1,1585.0,1.26243]
[1744394070225,4.07405,1585.1,1585.0,1.26243]
[1744394070526,7.28185,1585.1,1585.0,1.26243]
[1744394070820,7.8117,1585.1,1584.6,5.89936]
[1744394071123,6.0195,1585.0,1584.9,1.26251]
[1744394071526,2.8117,1585.0,1584.9,1.26251]
[1744394072422,1.26253,1584.9,1584.7,3.2078]
[1744394072626,4.47028,1585.0,1584.9,1.26251]
[1744394072924,1.26252,1584.9,1584.8,1.26253]
[1744394073230,3.2078,1585.0,1584.6,5.91528]
[1744394073422,1.26263,1584.8,1584.7,1.26263]
[1744394074124,1.26257,1584.9,1584.8,1.26259]
[1744394075524,1.26275,1584.6,1584.5,1.26277]
[1744394075723,8.69908,1584.8,1584.4,0.00947119]
[1744394075922,1.26283,1584.5,1584.4,1.27230119]
[1744394076129,1.26283,1584.5,1584.4,0.00947119]
[1744394076728,1.26283,1584.5,1584.4,1.27238119]
[1744394077429,1.26283,1584.5,1584.4,0.00947119]
[1744394077631,1.26283,1584.5,1584.4,1.27238119]
[1744394078127,1.26283,1584.5,1584.4,0.00947119]
[1744394078330,6.26283,1584.5,1584.4,0.00947119]
[1744394078926,6.26283,1584.5,1583.9,6.3659]
[1744394078927,1.26327,1584.0,1583.9,1.26325]
[1744394079117,1.26355,1583.7,1583.6,1.26355]
[1744394079317,1.26355,1583.6,1583.3,3.2078]
[1744394079624,1.26355,1583.6,1583.5,1.26363]
[1744394079930,6.38342781,1583.6,1583.1,3.2078]
[1744394080230,0.01674781,1583.4,1583.2,1.27329119]
[1744394080422,1.28053781,1583.3,1583.2,4.18819119]
[1744394080617,0.01674781,1583.3,1583.2,4.18824119]
[1744394080822,7.81e-06,1583.3,1583.2,9.18824119]
[1744394081025,7.81e-06,1583.3,1583.2,14.90324119]
[1744394081220,0.00947119,1583.7,1583.6,1.26355]
[1744394081627,0.00947119,1583.7,1583.6,6.26355]
[1744394081829,0.00947119,1583.7,1583.6,9.17845]
[1744394082331,0.00947119,1583.7,1583.6,4.17845]
[1744394082923,0.00947119,1583.7,1583.6,2.9149]
[1744394083226,0.00947119,1583.7,1583.6,4.17845]
[1744394083632,1.27294119,1583.7,1583.6,2.9149]
[1744394083927,0.00947119,1583.7,1583.3,2.3421]
[1744394084132,1.26359,1583.6,1583.4,4.21895]
[1744394084525,1.26363,1583.5,1583.4,2.9553]
[1744394084730,8.85997119,1583.7,1583.3,1.26377]
[1744394084925,1.26358,1583.6,1583.4,1.26365]
[1744394085126,1.26358,1583.6,1583.5,2.9553]
[1744394086330,2.9071,1583.6,1583.5,4.21893]
[1744394086530,2.49347119,1583.7,1583.6,1.26355]
[1744394086833,6.51764119,1583.7,1583.6,2.8684]
[1744394087027,0.00947119,1583.7,1583.6,1.26355]
[1744394087730,0.00947119,1583.7,1583.5,2.8684]
[1744394087921,4.03369119,1583.7,1583.5,4.13197]
[1744394088122,2.7607,1583.6,1583.5,4.13197]
[1744394088634,4.02425,1583.6,1583.5,2.8684]
[1744394089338,0.00947119,1583.7,1583.6,1.26355]
[1744394089632,0.00947119,1583.7,1583.5,2.8684]
[1744394089633,1.27294119,1583.7,1583.5,5.2539]
[1744394089836,1.27294119,1583.7,1583.6,4.18115]
[1744394089837,0.00947119,1583.7,1583.6,4.18115]
[1744394090026,1.27294119,1583.7,1583.6,4.18115]
[1744394090223,0.00947119,1583.7,1583.6,4.18115]
[1744394090635,1.27294119,1583.7,1583.6,4.18115]
[1744394090835,0.00947119,1583.7,1583.4,4.18127]
[1744394091130,1.26363,1583.5,1583.4,2.9176]
[1744394091434,1.26363,1583.5,1583.2,5.61137119]
[1744394091634,2.44917119,1583.7,1583.6,1.26355]
[1744394091838,1.26355,1583.6,1583.5,1.26356]
[1744394092230,0.00947119,1583.7,1583.6,1.26355]
[1744394092535,0.00947119,1583.7,1583.6,4.47135]
[1744394093136,0.00947119,1583.7,1583.6,7.13365]
[1744394093338,0.00947119,1583.7,1583.6,9.64495]
[1744394093733,0.00947119,1583.7,1583.6,6.43715]
[1744394094335,0.00947119,1583.7,1583.6,9.64495]
[1744394094639,1.27294119,1583.7,1583.6,9.64495]
[1744394095434,1.26355,1583.6,1583.5,1.26356]
[1744394095639,1.26363,1583.5,1583.4,4.47149]
[1744394096131,9.01769,1583.6,1583.2,3.21727119]
[1744394096331,1.26379,1583.3,1583.2,0.00947119]
[1744394099138,3.62889,1583.3,1583.2,0.00947119]
[1744394099533,8.62889,1583.3,1583.2,0.00947119]
[1744394099935,11.83669,1583.3,1583.2,0.00947119]
[1744394100142,8.62889,1583.3,1583.2,0.00947119]
[1744394100935,7.3651,1583.3,1582.4,3.2078]
[1744394101139,1.26448,1582.5,1582.4,6.1281]
[1744394101437,1.26448,1582.5,1582.4,3.2078]
[1744394102736,0.00947119,1582.6,1582.5,1.26442]
[1744394103033,0.00947119,1582.6,1582.5,3.94362]
[1744394103437,0.00947119,1582.6,1582.5,8.94362]
[1744394103748,1.26391,1583.2,1583.1,1.26395]
[1744394104039,1.26391,1583.2,1583.1,0.01674]
[1744394104434,5.079,1583.3,1583.1,1.28069]
[1744394104641,1.26387,1583.2,1583.1,1.28069]
[1744394104842,1.26387,1583.2,1583.1,4.16599]
[1744394105043,6.18639064,1583.2,1583.1,4.16599]
[1744394105242,8.97789064,1583.2,1583.1,4.16599]
[1744394105437,4.92252064,1583.2,1583.1,4.16599]
[1744394105841,4.92252064,1583.2,1583.1,11.65699]
[1744394106045,6.18639064,1583.2,1583.1,5.39304]
[1744394106340,4.92252064,1583.2,1583.1,11.65699]
[1744394106645,7.39170001,1583.3,1583.2,1.26387]
[1744394106845,7.39170001,1583.3,1583.2,7.37371]
[1744394107046,7.39170001,1583.3,1583.2,12.37371]
[1744394109135,7.39170001,1583.3,1583.2,7.37371]
[1744394109335,8.65549001,1583.3,1583.2,2.90204]
[1744394109541,1.26379,1583.3,1583.2,2.90204]
[1744394109744,4.12379,1583.3,1583.2,0.01674]
[1744394109940,2.47257119,1583.4,1583.2,0.01674]
[1744394110240,6.59629119,1583.4,1583.3,1.28053]
[1744394110447,2.86947119,1583.4,1583.3,1.28053]
[1744394110643,2.86947119,1583.4,1583.3,4.06733]
[1744394110949,8.86909,1584.0,1583.5,1.26359]
[1744394111244,8.86909,1584.0,1583.3,2.7868]
[1744394111245,2.7591,1583.7,1583.3,2.7868]
[1744394111447,1.26368,1583.5,1583.3,4.05054]
[1744394111740,2.4631,1583.8,1583.5,1.26363]
[1744394112046,4.02261,1583.7,1583.5,1.26363]
[1744394112344,4.02265,1583.6,1583.5,3.97843]
[1744394112539,4.02265,1583.6,1583.5,2.7148]
[1744394112739,1.26363,1583.5,1583.4,3.2078]
[1744394112940,2.7591,1583.5,1583.4,4.47145]
[1744394113149,4.02273,1583.5,1583.4,3.2078]
[1744394113639,1.26371,1583.4,1583.3,1.26377]
[1744394113839,3.93911,1583.4,1583.3,1.26377]
[1744394114038,1.26379,1583.3,1583.2,4.03161]
[1744394114346,1.26379,1583.3,1583.1,0.00947119]
[1744394114347,1.26387,1583.2,1583.1,0.00947119]
[1744394114535,1.26426,1582.7,1582.6,2.7678]
[1744394114845,1.26434,1582.6,1582.3,19.96339921]
[1744394115150,0.01674781,1582.5,1582.4,4.0323]
[1744394115339,0.01674781,1582.5,1582.3,12.91174921]
[1744394115540,5.711,1582.7,1582.4,1.24775219]
[1744394115740,9.65071,1582.7,1582.6,1.26434]
[1744394116046,3.94913119,1582.7,1582.6,1.26434]
[1744394116240,2.68487119,1582.7,1582.6,1.26434]
[1744394116438,0.00947119,1582.7,1582.6,1.26434]
[1744394116742,0.00947119,1582.7,1582.6,6.26434]
[1744394116941,0.00947119,1582.7,1582.6,10.09634]
[1744394117142,0.00947119,1582.7,1582.6,5.09634]
[1744394117745,0.00947119,1582.7,1582.6,10.09634]
[1744394118257,1.19e-06,1582.7,1582.6,10.55325489]
[1744394121442,4.9301,1583.7,1583.6,1.26355]
[1744394121647,2.4139,1583.7,1583.6,1.28029781]
[1744394121847,2.8679,1583.8,1583.6,1.28024781]
[1744394121848,4.13129,1583.8,1583.6,1.28024781]
[1744394122046,4.13129,1583.8,1583.6,4.08194781]
[1744394122239,2.8679,1583.8,1583.3,3.2078]
[1744394122439,1.26355,1583.6,1583.5,0.00947119]
[1744394122848,11.43105,1583.6,1583.5,0.00947119]
[1744394123045,3.15916,1583.5,1583.1,1.26389]
[1744394123348,6.47665,1583.4,1583.3,1.26379]
[1744394123550,5.2129,1583.4,1583.3,1.26379]